[Event "Titled Tuesday Blitz March 08 Early 2022"]
[White "Piliczewski, Bogusz"]
[Black "Sarkar, Justin"]
[WhiteFideId "1104144"]
[BlackFideId "2010011"]
[WhiteElo "1896"]
[BlackElo "2038"]
[Result "0-1"]
[Round "11"]
[TimeControl "180+1"]
[Date "2022.03.09"]
[WhiteClock "0:00:57"]
[BlackClock "0:00:06"]

1. d4 {[%clk 0:02:58]}  Nf6 {[%clk 0:02:55]} 2. Nf3 {[%clk 0:02:58]}  d5 {[%clk 0:02:54]} 3. Bf4 {[%clk 0:02:58]}  Bf5 {[%clk 0:02:52]} 4. e3 {[%clk 0:02:57]}  e6 {[%clk 0:02:48]} 5. Ne5 {[%clk 0:02:56]}  Nbd7 {[%clk 0:02:45]} 6. Bd3 {[%clk 0:02:52]}  Bxd3 {[%clk 0:02:37]} 7. Qxd3 {[%clk 0:02:50]}  Nxe5 {[%clk 0:02:32]} 8. dxe5 {[%clk 0:02:47]}  Nd7 {[%clk 0:02:31]} 9. Bg3 {[%clk 0:02:47]}  Be7 {[%clk 0:02:25]} 10. O-O {[%clk 0:02:45]}  O-O {[%clk 0:02:19]} 11. f4 {[%clk 0:02:45]}  Nc5 {[%clk 0:02:12]} 12. Qe2 {[%clk 0:02:38]}  Ne4 {[%clk 0:02:10]} 13. Be1 {[%clk 0:02:37]}  c5 {[%clk 0:02:04]} 14. Nd2 {[%clk 0:02:37]}  f5 {[%clk 0:01:46]} 15. Rd1 {[%clk 0:02:34]}  Qc7 {[%clk 0:01:37]} 16. Nxe4 {[%clk 0:02:30]}  dxe4 {[%clk 0:01:31]} 17. c4 {[%clk 0:02:29]}  Rad8 {[%clk 0:01:27]} 18. Bc3 {[%clk 0:02:28]}  Qc6 {[%clk 0:01:18]} 19. Rxd8 {[%clk 0:02:25]}  Rxd8 {[%clk 0:01:17]} 20. Rd1 {[%clk 0:02:26]}  Qe8 {[%clk 0:01:14]} 21. Rxd8 {[%clk 0:02:22]}  Qxd8 {[%clk 0:01:13]} 22. Qd2 {[%clk 0:02:22]}  Qxd2 {[%clk 0:01:02]} 23. Bxd2 {[%clk 0:02:22]}  g5 {[%clk 0:01:02]} 24. g3 {[%clk 0:02:21]}  Kf7 {[%clk 0:01:02]} 25. Kf2 {[%clk 0:02:19]}  Kg6 {[%clk 0:00:59]} 26. h3 {[%clk 0:02:18]}  h5 {[%clk 0:00:57]} 27. Kg2 {[%clk 0:02:13]}  h4 {[%clk 0:00:51]} 28. gxh4 {[%clk 0:02:11]}  gxf4 {[%clk 0:00:50]} 29. exf4 {[%clk 0:02:08]}  Bxh4 {[%clk 0:00:50]} 30. Be3 {[%clk 0:02:04]}  b6 {[%clk 0:00:49]} 31. a3 {[%clk 0:02:02]}  a5 {[%clk 0:00:45]} 32. Kf1 {[%clk 0:01:58]}  a4 {[%clk 0:00:43]} 33. Ke2 {[%clk 0:01:54]}  Kh5 {[%clk 0:00:43]} 34. Kd2 {[%clk 0:01:52]}  Bg3 {[%clk 0:00:41]} 35. Kc3 {[%clk 0:01:50]}  Kh4 {[%clk 0:00:37]} 36. b4 {[%clk 0:01:48]}  axb3 {[%clk 0:00:36]} 37. Kxb3 {[%clk 0:01:48]}  Kxh3 {[%clk 0:00:36]} 38. Ka4 {[%clk 0:01:47]}  Kg4 {[%clk 0:00:36]} 39. Kb5 {[%clk 0:01:46]}  Bxf4 {[%clk 0:00:35]} 40. Bf2 {[%clk 0:01:41]}  e3 {[%clk 0:00:31]} 41. Be1 {[%clk 0:01:41]}  Bg3 {[%clk 0:00:29]} 42. Bc3 {[%clk 0:01:41]}  f4 {[%clk 0:00:25]} 43. Kxb6 {[%clk 0:01:41]}  f3 {[%clk 0:00:25]} 44. a4 {[%clk 0:01:41]}  f2 {[%clk 0:00:24]} 45. a5 {[%clk 0:01:40]}  f1=Q {[%clk 0:00:24]} 46. a6 {[%clk 0:01:40]}  Qxc4 {[%clk 0:00:23]} 47. a7 {[%clk 0:01:35]}  Qb3+ {[%clk 0:00:21]} 48. Kc7 {[%clk 0:01:34]}  Qxc3 {[%clk 0:00:15]} 49. a8=Q {[%clk 0:01:33]}  Qxe5+ {[%clk 0:00:15]} 50. Kb6 {[%clk 0:01:31]}  Qd6+ {[%clk 0:00:14]} 51. Kb5 {[%clk 0:01:31]}  Qd5 {[%clk 0:00:10]} 52. Qg8+ {[%clk 0:01:29]}  Kf3 {[%clk 0:00:10]} 53. Qf7+ {[%clk 0:01:28]}  Bf4 {[%clk 0:00:10]} 54. Qg6 {[%clk 0:01:24]}  e2 {[%clk 0:00:10]} 55. Qg1 {[%clk 0:01:21]}  Qb3+ {[%clk 0:00:09]} 56. Kc6 {[%clk 0:01:20]}  Qd1 {[%clk 0:00:08]} 57. Qg6 {[%clk 0:01:15]}  Qd5+ {[%clk 0:00:06]} 58. Kb6 {[%clk 0:01:12]}  e1=Q {[%clk 0:00:06]} 59. Ka7 {[%clk 0:00:57]}  Qa5# {[%clk 0:00:06]} 0-1


[Site "https://www.chess.com"]

[Event "Titled Tuesday Blitz March 08 Early 2022"]
[White "Rustemov, Alexander"]
[Black "Dronavalli, Harika"]
[WhiteFideId "4119002"]
[BlackFideId "5015197"]
[WhiteElo "2771"]
[BlackElo "2382"]
[Result "1-0"]
[Round "11"]
[TimeControl "180+1"]
[Date "2022.03.08"]
[WhiteClock "0:00:27"]
[BlackClock "0:00:02"]

1. d4 {[%clk 0:03:00]}  Nf6 {[%clk 0:02:59]} 2. c4 {[%clk 0:03:00]}  e6 {[%clk 0:02:59]} 3. Nf3 {[%clk 0:03:01]}  d5 {[%clk 0:02:59]} 4. Nc3 {[%clk 0:03:00]}  dxc4 {[%clk 0:03:00]} 5. e4 {[%clk 0:03:00]}  Bb4 {[%clk 0:02:58]} 6. Bg5 {[%clk 0:02:59]}  c5 {[%clk 0:02:52]} 7. Bxc4 {[%clk 0:02:58]}  cxd4 {[%clk 0:02:44]} 8. Nxd4 {[%clk 0:02:57]}  Bxc3+ {[%clk 0:02:43]} 9. bxc3 {[%clk 0:02:58]}  Qa5 {[%clk 0:02:43]} 10. Bb5+ {[%clk 0:02:52]}  Bd7 {[%clk 0:02:36]} 11. Bxf6 {[%clk 0:02:52]}  gxf6 {[%clk 0:02:36]} 12. Qb3 {[%clk 0:02:50]}  Bxb5 {[%clk 0:02:32]} 13. Nxb5 {[%clk 0:02:49]}  O-O {[%clk 0:02:29]} 14. O-O {[%clk 0:02:48]}  Nc6 {[%clk 0:02:28]} 15. c4 {[%clk 0:02:40]}  Rad8 {[%clk 0:02:28]} 16. Qg3+ {[%clk 0:02:38]}  Kh8 {[%clk 0:02:28]} 17. Qh4 {[%clk 0:02:36]}  Kg7 {[%clk 0:02:27]} 18. Rae1 {[%clk 0:02:22]}  Ne5 {[%clk 0:02:08]} 19. Re3 {[%clk 0:02:18]}  Ng6 {[%clk 0:02:01]} 20. Qg3 {[%clk 0:02:12]}  a6 {[%clk 0:01:50]} 21. Nd6 {[%clk 0:02:11]}  Rd7 {[%clk 0:01:32]} 22. Rb3 {[%clk 0:01:50]}  Qe5 {[%clk 0:00:59]} 23. Qxe5 {[%clk 0:01:44]}  Nxe5 {[%clk 0:00:58]} 24. Nxb7 {[%clk 0:01:44]}  Rc8 {[%clk 0:00:57]} 25. c5 {[%clk 0:01:41]}  Nd3 {[%clk 0:00:50]} 26. Nd6 {[%clk 0:01:24]}  Rxc5 {[%clk 0:00:25]} 27. Rxd3 {[%clk 0:01:22]}  Kf8 {[%clk 0:00:26]} 28. Rfd1 {[%clk 0:01:20]}  Rc2 {[%clk 0:00:21]} 29. a3 {[%clk 0:01:17]}  a5 {[%clk 0:00:20]} 30. g3 {[%clk 0:01:16]}  a4 {[%clk 0:00:19]} 31. Kg2 {[%clk 0:01:14]}  Ra2 {[%clk 0:00:19]} 32. Nb5 {[%clk 0:01:06]}  Rb7 {[%clk 0:00:18]} 33. Rb1 {[%clk 0:00:59]}  Kg7 {[%clk 0:00:16]} 34. Rb4 {[%clk 0:00:58]}  h5 {[%clk 0:00:13]} 35. h4 {[%clk 0:00:58]}  Ra1 {[%clk 0:00:13]} 36. Kf3 {[%clk 0:00:44]}  Ra2 {[%clk 0:00:13]} 37. Ke3 {[%clk 0:00:44]}  Rb6 {[%clk 0:00:13]} 38. Rc3 {[%clk 0:00:43]}  Rb7 {[%clk 0:00:12]} 39. Rcc4 {[%clk 0:00:39]}  Rd7 {[%clk 0:00:11]} 40. Rd4 {[%clk 0:00:35]}  Rb7 {[%clk 0:00:09]} 41. f3 {[%clk 0:00:33]}  Rb8 {[%clk 0:00:09]} 42. Rd3 {[%clk 0:00:29]}  e5 {[%clk 0:00:08]} 43. Nc3 {[%clk 0:00:28]}  Rxb4 {[%clk 0:00:03]} 44. Nxa2 {[%clk 0:00:27]}  Rb2 {[%clk 0:00:02]} 45. Nc3 {[%clk 0:00:27]} 1-0


[Site "https://www.chess.com"]

[Event "Titled Tuesday Blitz March 08 Early 2022"]
[White "Rychagov, Andrey"]
[Black "Tologon tegin, Semetei"]
[WhiteFideId "4119932"]
[BlackFideId "13800574"]
[WhiteElo "2500"]
[BlackElo "2258"]
[Result "1-0"]
[Round "11"]
[TimeControl "180+1"]
[Date "2022.03.08"]
[WhiteClock "0:00:26"]
[BlackClock "0:00:04"]

1. d4 {[%clk 0:03:00]}  d5 {[%clk 0:02:53]} 2. c4 {[%clk 0:03:00]}  e6 {[%clk 0:02:53]} 3. Nf3 {[%clk 0:03:00]}  Nf6 {[%clk 0:02:53]} 4. Nc3 {[%clk 0:02:59]}  Be7 {[%clk 0:02:53]} 5. Bf4 {[%clk 0:02:57]}  O-O {[%clk 0:02:52]} 6. a3 {[%clk 0:02:55]}  dxc4 {[%clk 0:02:51]} 7. e4 {[%clk 0:02:51]}  c5 {[%clk 0:02:51]} 8. Bxc4 {[%clk 0:02:47]}  cxd4 {[%clk 0:02:25]} 9. Qxd4 {[%clk 0:02:47]}  Qa5 {[%clk 0:02:25]} 10. O-O {[%clk 0:02:40]}  Nc6 {[%clk 0:02:26]} 11. Qe3 {[%clk 0:02:38]}  e5 {[%clk 0:02:26]} 12. Bg5 {[%clk 0:02:28]}  Be6 {[%clk 0:02:10]} 13. Bxe6 {[%clk 0:02:15]}  fxe6 {[%clk 0:02:11]} 14. Rfd1 {[%clk 0:02:15]}  Ng4 {[%clk 0:02:06]} 15. Qc1 {[%clk 0:02:01]}  Bc5 {[%clk 0:02:00]} 16. Bh4 {[%clk 0:01:47]}  Nd4 {[%clk 0:01:43]} 17. b4 {[%clk 0:01:40]}  Qa6 {[%clk 0:01:23]} 18. bxc5 {[%clk 0:01:33]}  Rxf3 {[%clk 0:01:22]} 19. Rxd4 {[%clk 0:01:27]}  Rxc3 {[%clk 0:01:15]} 20. Qxc3 {[%clk 0:01:24]}  exd4 {[%clk 0:01:15]} 21. Qxd4 {[%clk 0:01:23]}  Rc8 {[%clk 0:00:57]} 22. h3 {[%clk 0:01:21]}  Nh6 {[%clk 0:00:57]} 23. Rb1 {[%clk 0:01:13]}  Qc6 {[%clk 0:00:54]} 24. Be7 {[%clk 0:01:11]}  Nf7 {[%clk 0:00:49]} 25. e5 {[%clk 0:01:11]}  h6 {[%clk 0:00:44]} 26. Rd1 {[%clk 0:01:08]}  b6 {[%clk 0:00:38]} 27. cxb6 {[%clk 0:01:06]}  axb6 {[%clk 0:00:38]} 28. Rd3 {[%clk 0:01:01]}  b5 {[%clk 0:00:36]} 29. Rg3 {[%clk 0:01:01]}  Qc4 {[%clk 0:00:28]} 30. Qa7 {[%clk 0:00:35]}  Qc1+ {[%clk 0:00:11]} 31. Kh2 {[%clk 0:00:34]}  Qf4 {[%clk 0:00:12]} 32. Bf6 {[%clk 0:00:31]}  h5 {[%clk 0:00:05]} 33. Qd7 {[%clk 0:00:28]}  Rc2 {[%clk 0:00:04]} 34. Qe8+ {[%clk 0:00:26]}  Kh7 {[%clk 0:00:04]} 35. Qxf7 {[%clk 0:00:26]} 1-0


[Site "https://www.chess.com"]

[Event "Titled Tuesday Blitz March 08 Early 2022"]
[White "Sanal, Vahap"]
[Black "Papasimakopoulos, Alexandros"]
[WhiteFideId "6300545"]
[BlackFideId "4244125"]
[WhiteElo "2603"]
[BlackElo "2340"]
[Result "1-0"]
[Round "11"]
[TimeControl "180+1"]
[Date "2022.03.08"]
[WhiteClock "0:00:20"]
[BlackClock "0:00:26"]

1. e4 {[%clk 0:03:00]}  e6 {[%clk 0:03:00]} 2. d4 {[%clk 0:03:00]}  d5 {[%clk 0:02:58]} 3. Nd2 {[%clk 0:03:01]}  Be7 {[%clk 0:02:57]} 4. Ngf3 {[%clk 0:03:00]}  Nf6 {[%clk 0:02:56]} 5. e5 {[%clk 0:03:01]}  Nfd7 {[%clk 0:02:57]} 6. Bd3 {[%clk 0:03:01]}  c5 {[%clk 0:02:57]} 7. c3 {[%clk 0:03:02]}  Nc6 {[%clk 0:02:57]} 8. O-O {[%clk 0:03:03]}  a5 {[%clk 0:02:58]} 9. a4 {[%clk 0:03:03]}  cxd4 {[%clk 0:02:57]} 10. cxd4 {[%clk 0:03:03]}  Nb4 {[%clk 0:02:57]} 11. Be2 {[%clk 0:03:02]}  b6 {[%clk 0:02:57]} 12. Nb1 {[%clk 0:03:02]}  Ba6 {[%clk 0:02:57]} 13. Nc3 {[%clk 0:03:03]}  Bxe2 {[%clk 0:02:57]} 14. Qxe2 {[%clk 0:03:04]}  O-O {[%clk 0:02:56]} 15. Bf4 {[%clk 0:03:03]}  Nb8 {[%clk 0:02:50]} 16. Nb5 {[%clk 0:03:02]}  Qd7 {[%clk 0:02:45]} 17. Rfc1 {[%clk 0:03:02]}  N8c6 {[%clk 0:02:42]} 18. h4 {[%clk 0:03:01]}  Rfc8 {[%clk 0:02:38]} 19. h5 {[%clk 0:03:01]}  h6 {[%clk 0:02:37]} 20. Rc3 {[%clk 0:02:56]}  Na7 {[%clk 0:02:35]} 21. Rac1 {[%clk 0:02:52]}  Nxb5 {[%clk 0:02:33]} 22. axb5 {[%clk 0:02:42]}  Na2 {[%clk 0:02:30]} 23. Rxc8+ {[%clk 0:02:41]}  Rxc8 {[%clk 0:02:31]} 24. Rxc8+ {[%clk 0:02:39]}  Qxc8 {[%clk 0:02:32]} 25. g4 {[%clk 0:02:22]}  Nb4 {[%clk 0:02:22]} 26. Kg2 {[%clk 0:01:58]}  Qc2 {[%clk 0:02:08]} 27. Qxc2 {[%clk 0:01:40]}  Nxc2 {[%clk 0:02:09]} 28. Kf1 {[%clk 0:01:36]}  a4 {[%clk 0:02:02]} 29. Bc1 {[%clk 0:01:37]}  a3 {[%clk 0:01:53]} 30. bxa3 {[%clk 0:01:37]}  Bxa3 {[%clk 0:01:53]} 31. Ne1 {[%clk 0:01:31]}  Bxc1 {[%clk 0:01:10]} 32. Nxc2 {[%clk 0:01:31]}  Kf8 {[%clk 0:01:07]} 33. Kg2 {[%clk 0:01:25]}  Ke7 {[%clk 0:01:05]} 34. Kg3 {[%clk 0:01:25]}  Bb2 {[%clk 0:00:59]} 35. f4 {[%clk 0:01:21]}  f6 {[%clk 0:00:55]} 36. Kf3 {[%clk 0:01:20]}  Kf7 {[%clk 0:00:53]} 37. Ke3 {[%clk 0:01:17]}  Bc1+ {[%clk 0:00:52]} 38. Kf3 {[%clk 0:01:17]}  Bb2 {[%clk 0:00:53]} 39. Kg3 {[%clk 0:01:07]}  g5 {[%clk 0:00:46]} 40. fxg5 {[%clk 0:00:58]}  hxg5 {[%clk 0:00:47]} 41. exf6 {[%clk 0:00:57]}  Kxf6 {[%clk 0:00:48]} 42. Kf3 {[%clk 0:00:58]}  e5 {[%clk 0:00:49]} 43. Ke3 {[%clk 0:00:52]}  Bc1+ {[%clk 0:00:44]} 44. Ke2 {[%clk 0:00:51]}  Bb2 {[%clk 0:00:43]} 45. Nb4 {[%clk 0:00:49]}  Ke6 {[%clk 0:00:40]} 46. Nc6 {[%clk 0:00:34]}  e4 {[%clk 0:00:30]} 47. Kd2 {[%clk 0:00:31]}  Ba1 {[%clk 0:00:27]} 48. Kc2 {[%clk 0:00:28]}  Kf7 {[%clk 0:00:19]} 49. Kd1 {[%clk 0:00:22]}  Ke6 {[%clk 0:00:18]} 50. Ke2 {[%clk 0:00:22]}  Bb2 {[%clk 0:00:17]} 51. Kd2 {[%clk 0:00:22]}  Ba1 {[%clk 0:00:17]} 52. Ke3 {[%clk 0:00:22]}  Bb2 {[%clk 0:00:17]} 53. Nd8+ {[%clk 0:00:18]}  Ke7 {[%clk 0:00:16]} 54. h6 {[%clk 0:00:11]}  Bc1+ {[%clk 0:00:16]} 55. Ke2 {[%clk 0:00:11]}  Bb2 {[%clk 0:00:15]} 56. h7 {[%clk 0:00:11]}  Bxd4 {[%clk 0:00:14]} 57. Nc6+ {[%clk 0:00:11]}  Kf7 {[%clk 0:00:15]} 58. Nxd4 {[%clk 0:00:12]}  Kg7 {[%clk 0:00:16]} 59. Ke3 {[%clk 0:00:09]}  Kxh7 {[%clk 0:00:16]} 60. Nf5 {[%clk 0:00:10]}  Kg6 {[%clk 0:00:16]} 61. Kd4 {[%clk 0:00:10]}  e3 {[%clk 0:00:16]} 62. Nxe3 {[%clk 0:00:11]}  Kf6 {[%clk 0:00:16]} 63. Nxd5+ {[%clk 0:00:12]}  Ke6 {[%clk 0:00:17]} 64. Nxb6 {[%clk 0:00:12]}  Kd6 {[%clk 0:00:18]} 65. Nc4+ {[%clk 0:00:13]}  Ke6 {[%clk 0:00:18]} 66. Nd2 {[%clk 0:00:13]}  Kd7 {[%clk 0:00:19]} 67. Ne4 {[%clk 0:00:14]}  Kc7 {[%clk 0:00:19]} 68. Nxg5 {[%clk 0:00:15]}  Kb6 {[%clk 0:00:20]} 69. Ne4 {[%clk 0:00:15]}  Kxb5 {[%clk 0:00:21]} 70. g5 {[%clk 0:00:16]}  Kc6 {[%clk 0:00:21]} 71. g6 {[%clk 0:00:16]}  Kd7 {[%clk 0:00:22]} 72. g7 {[%clk 0:00:17]}  Ke6 {[%clk 0:00:23]} 73. g8=Q+ {[%clk 0:00:17]}  Ke7 {[%clk 0:00:24]} 74. Qg7+ {[%clk 0:00:18]}  Ke6 {[%clk 0:00:24]} 75. Qg6+ {[%clk 0:00:18]}  Kd7 {[%clk 0:00:25]} 76. Kd5 {[%clk 0:00:19]}  Ke7 {[%clk 0:00:25]} 77. Qg7+ {[%clk 0:00:19]}  Kd8 {[%clk 0:00:25]} 78. Kd6 {[%clk 0:00:20]}  Ke8 {[%clk 0:00:26]} 79. Qe7# {[%clk 0:00:20]} 1-0


[Site "https://www.chess.com"]

[Event "Titled Tuesday Blitz March 08 Early 2022"]
[White "Sanchez Alvares, Kelvin Antonio"]
[Black "Gaehwiler, Gabriel"]
[WhiteFideId "3906680"]
[BlackFideId "1314530"]
[WhiteElo "2193"]
[BlackElo "2383"]
[Result "0-1"]
[Round "11"]
[TimeControl "180+1"]
[Date "2022.03.08"]
[WhiteClock "0:01:09"]
[BlackClock "0:01:22"]

1. e4 {[%clk 0:03:00]}  c5 {[%clk 0:02:58]} 2. Nf3 {[%clk 0:03:00]}  d6 {[%clk 0:02:59]} 3. d4 {[%clk 0:03:00]}  cxd4 {[%clk 0:02:59]} 4. Nxd4 {[%clk 0:03:01]}  Nf6 {[%clk 0:03:00]} 5. f3 {[%clk 0:03:01]}  Nc6 {[%clk 0:03:01]} 6. Nc3 {[%clk 0:02:58]}  g6 {[%clk 0:03:01]} 7. Be3 {[%clk 0:02:58]}  Bd7 {[%clk 0:03:01]} 8. Bc4 {[%clk 0:02:58]}  Bg7 {[%clk 0:03:01]} 9. Bb3 {[%clk 0:02:58]}  Rc8 {[%clk 0:03:00]} 10. h4 {[%clk 0:02:58]}  h5 {[%clk 0:03:00]} 11. Qd2 {[%clk 0:02:58]}  a6 {[%clk 0:03:01]} 12. O-O-O {[%clk 0:02:56]}  Ne5 {[%clk 0:03:01]} 13. Kb1 {[%clk 0:02:56]}  b5 {[%clk 0:03:00]} 14. Nde2 {[%clk 0:02:55]}  Nc4 {[%clk 0:03:00]} 15. Bxc4 {[%clk 0:02:55]}  Rxc4 {[%clk 0:03:01]} 16. Nf4 {[%clk 0:02:54]}  Qc8 {[%clk 0:02:59]} 17. Ncd5 {[%clk 0:02:52]}  Rc6 {[%clk 0:02:46]} 18. Nxf6+ {[%clk 0:02:51]}  Bxf6 {[%clk 0:02:47]} 19. Nd5 {[%clk 0:02:47]}  Bg7 {[%clk 0:02:47]} 20. Bd4 {[%clk 0:02:44]}  f6 {[%clk 0:02:42]} 21. Be3 {[%clk 0:02:33]}  Be6 {[%clk 0:02:42]} 22. Nf4 {[%clk 0:02:32]}  Bf7 {[%clk 0:02:42]} 23. Nd5 {[%clk 0:02:25]}  Be6 {[%clk 0:02:36]} 24. Nf4 {[%clk 0:02:20]}  Kf7 {[%clk 0:02:36]} 25. g4 {[%clk 0:02:11]}  hxg4 {[%clk 0:02:05]} 26. h5 {[%clk 0:02:10]}  g5 {[%clk 0:01:55]} 27. Ng6 {[%clk 0:02:10]}  gxf3 {[%clk 0:01:43]} 28. Nxh8+ {[%clk 0:02:07]}  Bxh8 {[%clk 0:01:44]} 29. Rdf1 {[%clk 0:02:02]}  g4 {[%clk 0:01:40]} 30. h6 {[%clk 0:02:02]}  Qg8 {[%clk 0:01:36]} 31. Qh2 {[%clk 0:01:56]}  Qg6 {[%clk 0:01:30]} 32. Qf4 {[%clk 0:01:54]}  Rc4 {[%clk 0:01:29]} 33. Bc1 {[%clk 0:01:41]}  Qxe4 {[%clk 0:01:28]} 34. Qxe4 {[%clk 0:01:39]}  Rxe4 {[%clk 0:01:29]} 35. Bd2 {[%clk 0:01:25]}  Re2 {[%clk 0:01:28]} 36. Kc1 {[%clk 0:01:25]}  Bd5 {[%clk 0:01:27]} 37. Rhg1 {[%clk 0:01:24]}  f5 {[%clk 0:01:23]} 38. b3 {[%clk 0:01:13]}  Be4 {[%clk 0:01:22]} 39. Kd1 {[%clk 0:01:12]}  Rh2 {[%clk 0:01:22]} 40. Rh1 {[%clk 0:01:11]}  Rxh1 {[%clk 0:01:21]} 41. Rxh1 {[%clk 0:01:11]}  f2 {[%clk 0:01:21]} 42. Rf1 {[%clk 0:01:09]}  g3 {[%clk 0:01:22]} 0-1


[Site "https://www.chess.com"]

[Event "Titled Tuesday Blitz March 08 Early 2022"]
[White "Shukhman, Anna"]
[Black "Chernomordik, Pavel"]
[WhiteFideId "54180058"]
[BlackFideId "2804530"]
[WhiteElo "1665"]
[BlackElo "2249"]
[Result "1/2-1/2"]
[Round "11"]
[TimeControl "180+1"]
[Date "2022.03.09"]
[WhiteClock "0:00:15"]
[BlackClock "0:00:18"]

1. e4 {[%clk 0:03:00]}  g6 {[%clk 0:02:57]} 2. d4 {[%clk 0:03:00]}  Bg7 {[%clk 0:02:56]} 3. Nc3 {[%clk 0:02:59]}  d6 {[%clk 0:02:56]} 4. Nf3 {[%clk 0:02:58]}  a6 {[%clk 0:02:54]} 5. Be2 {[%clk 0:02:58]}  b5 {[%clk 0:02:54]} 6. a3 {[%clk 0:02:57]}  Bb7 {[%clk 0:02:54]} 7. O-O {[%clk 0:02:57]}  Nd7 {[%clk 0:02:54]} 8. Re1 {[%clk 0:02:56]}  c5 {[%clk 0:02:53]} 9. dxc5 {[%clk 0:02:18]}  Nxc5 {[%clk 0:02:52]} 10. Be3 {[%clk 0:02:13]}  Nxe4 {[%clk 0:02:44]} 11. Nxb5 {[%clk 0:02:11]}  axb5 {[%clk 0:02:37]} 12. Bxb5+ {[%clk 0:02:09]}  Kf8 {[%clk 0:02:36]} 13. Nd4 {[%clk 0:02:06]}  Qc7 {[%clk 0:02:30]} 14. a4 {[%clk 0:01:59]}  Ngf6 {[%clk 0:02:27]} 15. f3 {[%clk 0:01:57]}  Nc5 {[%clk 0:02:26]} 16. b4 {[%clk 0:01:57]}  Na6 {[%clk 0:02:24]} 17. Bxa6 {[%clk 0:01:50]}  Bxa6 {[%clk 0:02:17]} 18. a5 {[%clk 0:01:47]}  Nd5 {[%clk 0:02:13]} 19. b5 {[%clk 0:01:40]}  Bc8 {[%clk 0:02:08]} 20. b6 {[%clk 0:01:28]}  Qc3 {[%clk 0:02:02]} 21. Bf2 {[%clk 0:01:25]}  Rxa5 {[%clk 0:01:52]} 22. Rxa5 {[%clk 0:01:19]}  Qxa5 {[%clk 0:01:51]} 23. Nc6 {[%clk 0:01:10]}  Qb5 {[%clk 0:01:50]} 24. Na7 {[%clk 0:01:08]}  Qd7 {[%clk 0:01:32]} 25. Qxd5 {[%clk 0:01:02]}  Bb7 {[%clk 0:01:31]} 26. Qc4 {[%clk 0:01:00]}  Bf6 {[%clk 0:01:24]} 27. Bd4 {[%clk 0:00:52]}  e5 {[%clk 0:01:22]} 28. Bb2 {[%clk 0:00:44]}  Kg7 {[%clk 0:01:20]} 29. f4 {[%clk 0:00:42]}  Qg4 {[%clk 0:01:15]} 30. Qe2 {[%clk 0:00:30]}  Qxf4 {[%clk 0:01:05]} 31. Rf1 {[%clk 0:00:30]}  Qg5 {[%clk 0:01:03]} 32. Bc1 {[%clk 0:00:27]}  Qh5 {[%clk 0:00:57]} 33. Qf2 {[%clk 0:00:24]}  Qf5 {[%clk 0:00:56]} 34. Qd2 {[%clk 0:00:17]}  Qe4 {[%clk 0:00:55]} 35. Qf2 {[%clk 0:00:16]}  Qf5 {[%clk 0:00:49]} 36. Qd2 {[%clk 0:00:15]}  Qg4 {[%clk 0:00:22]} 37. Qf2 {[%clk 0:00:15]}  Qf5 {[%clk 0:00:18]} 1/2-1/2


[Site "https://www.chess.com"]

[Event "Titled Tuesday Blitz March 08 Early 2022"]
[White "Silva, Miguel Antonio Neto"]
[Black "Seo, Jung Min"]
[WhiteFideId "1911929"]
[BlackFideId "1734687"]
[WhiteElo "2204"]
[BlackElo "2401"]
[Result "1-0"]
[Round "11"]
[TimeControl "180+1"]
[Date "2022.03.08"]
[WhiteClock "0:00:17"]
[BlackClock "0:00:01"]

1. e4 {[%clk 0:03:00]}  c6 {[%clk 0:02:59]} 2. d4 {[%clk 0:02:59]}  d5 {[%clk 0:02:59]} 3. e5 {[%clk 0:02:57]}  Bf5 {[%clk 0:02:59]} 4. h4 {[%clk 0:02:54]}  h6 {[%clk 0:02:56]} 5. g4 {[%clk 0:02:50]}  Bh7 {[%clk 0:02:56]} 6. f4 {[%clk 0:02:49]}  e6 {[%clk 0:02:56]} 7. Nc3 {[%clk 0:02:45]}  c5 {[%clk 0:02:54]} 8. Nf3 {[%clk 0:02:42]}  Nc6 {[%clk 0:02:54]} 9. Be3 {[%clk 0:02:39]}  cxd4 {[%clk 0:02:40]} 10. Nxd4 {[%clk 0:02:37]}  Nge7 {[%clk 0:02:39]} 11. Bd3 {[%clk 0:02:30]}  Bxd3 {[%clk 0:02:36]} 12. Qxd3 {[%clk 0:02:27]}  h5 {[%clk 0:02:32]} 13. Ncb5 {[%clk 0:02:24]}  Nc8 {[%clk 0:02:30]} 14. O-O-O {[%clk 0:02:05]}  a6 {[%clk 0:02:22]} 15. Nc3 {[%clk 0:01:55]}  hxg4 {[%clk 0:02:17]} 16. f5 {[%clk 0:01:42]}  Nxd4 {[%clk 0:02:08]} 17. Qxd4 {[%clk 0:01:39]}  Ne7 {[%clk 0:01:47]} 18. fxe6 {[%clk 0:01:34]}  fxe6 {[%clk 0:01:47]} 19. Rhf1 {[%clk 0:01:25]}  Nf5 {[%clk 0:01:44]} 20. Qxg4 {[%clk 0:01:18]}  Qd7 {[%clk 0:01:22]} 21. Bg5 {[%clk 0:01:06]}  g6 {[%clk 0:01:15]} 22. Ne4 {[%clk 0:01:01]}  Kf7 {[%clk 0:01:07]} 23. Nf6 {[%clk 0:00:57]}  Qc6 {[%clk 0:01:06]} 24. h5 {[%clk 0:00:50]}  gxh5 {[%clk 0:00:59]} 25. Nxh5 {[%clk 0:00:47]}  Be7 {[%clk 0:00:27]} 26. Rxf5+ {[%clk 0:00:44]}  exf5 {[%clk 0:00:27]} 27. Qxf5+ {[%clk 0:00:42]}  Ke8 {[%clk 0:00:27]} 28. Bxe7 {[%clk 0:00:38]}  Kxe7 {[%clk 0:00:27]} 29. Qg5+ {[%clk 0:00:32]}  Kd7 {[%clk 0:00:18]} 30. Qg7+ {[%clk 0:00:28]}  Ke6 {[%clk 0:00:18]} 31. Nf4+ {[%clk 0:00:24]}  Kf5 {[%clk 0:00:18]} 32. Qf7+ {[%clk 0:00:24]}  Ke4 {[%clk 0:00:17]} 33. Ng6 {[%clk 0:00:17]}  Rh2 {[%clk 0:00:01]} 34. Qf4# {[%clk 0:00:17]} 1-0


[Site "https://www.chess.com"]